Cogmind - Beta 11.1 @@@ ROGUE MODE // 2022.06.30 @ 00:10:37 Player: Jezoensis Result: Destroyed by H-88 Terminator with KE Penetrator Performance ------------- Evolutions (8) 4000 Regions Visited (13) 2600 Robots Destroyed (72) 360 Value Destroyed (1704) 1704 Prototype IDs (42) 840 Alien Tech Used (0) 0 Bonus (1000) 1000 TOTAL SCORE: 10504 Bonus ------- Entered Garrisons 200 Used RIF Installer 500 Aligned with FarCom 300 Cogmind --------- Core Integrity 0/1450 Matter 264/300 Energy 100/100 System Corruption 2% Temperature Cool (0) Movement Core (50) Location -2/Research Parts ------- > --- POWER (2) -------- (None) > --- PROPULSION (6) --- (None) > --- UTILITY (11) ----- (None) > --- WEAPON (4) ------- (None) > --- INVENTORY (5) ---- Enhanced Nova Cannon Peak State ------------ > --- POWER ------------ Micro Nuclear Core F-cell Engine > --- PROPULSION ------- Titanium Leg Flexi-carbon Leg Flexi-carbon Leg Flexi-carbon Leg Flexi-carbon Leg > --- UTILITY ---------- Improved Coolant Injector High-capacity Storage Unit Visual Processing Unit Advanced Terrain Scan Processor Modified TNC Advanced Targeting Computer Experimental Targeting Computer Transmission Jammer Improved Utility Shielding Experimental Hacking Suite > --- WEAPON ----------- Heavy Particle Gun Heavy Particle Gun Heavy Particle Gun Heavy Wave Gun > --- INVENTORY -------- Enhanced Nuclear Core Neutrino Core Advanced Cryofiber Web Advanced Heat Sink Improved Cooling System Improved Cooling System Improved Coolant Injector Large Storage Unit Matter Compressor Advanced Signal Interpreter Advanced Terrain Scanner Weapon Cycler Transmission Jammer ECM Suite Focal Shield Heavy Particle Gun Heavy Particle Gun Plasma Rifle Plasma Rifle Heavy Plasma Cannon [Rating: 105] Favorites ----------- Power F-cell Engine Engine F-cell Engine Power Core Micro Nuclear Core Reactor Quantum Reactor Propulsion Improved Titanium Leg Treads Light Treads Leg Improved Titanium Leg Wheel Wheel Hover Unit Gyrokinetic Inverter Utility High-capacity Storage Unit Device Improved Terrain Scanner Storage High-capacity Storage Unit Processor Visual Processing Unit Hackware Experimental Hacking Suite Protection Improved Utility Shielding Weapon Heavy Particle Gun Energy Gun Heavy Particle Gun Energy Cannon Heavy Plasma Cannon Ballistic Gun Gauss Rifle Ballistic Cannon Battle Cannon Launcher Rocket Launcher Special Weapon Mining Laser Impact Weapon Heavy Flail Build | -11 -10 -10 -10 -9 -8 -8 -8 -7 -6 -5 -4 -3 -2 ------- Run | Scr Mat Min Exi Min Mat Gar Mat Fac Fac Fac Fac Res Res Slots Evolved 16 | . . . . . 4 . . 2 2 2 2 2 2 Power 1 | . . . . . . . . . . 1 . . . Propulsion 4 | . . . . . 1 . . 1 . . . 1 1 Utility 9 | . . . . . 2 . . 1 2 1 1 1 1 Weapon 2 | . . . . . 1 . . . . . 1 . . Parts Attached 165 | 8 4 4 1 13 20 3 36 9 10 7 8 25 17 Power 13 | 1 1 . . 1 . . 1 2 1 1 1 1 3 Engine 6 | 1 1 . . . . . 1 1 1 . 1 . . Core 4 | . . . . 1 . . . 1 . 1 . 1 . Reactor 3 | . . . . . . . . . . . . . 3 Propulsion 42 | 3 . 2 1 4 6 . 15 1 1 1 . 3 5 Treads 11 | . . 1 . 1 3 . 6 . . . . . . Leg 13 | . . . . . . . 6 1 1 1 . 3 1 Wheel 14 | 3 . 1 1 3 3 . 3 . . . . . . Hover 4 | . . . . . . . . . . . . . 4 Flight . | . . . . . . . . . . . . . . Utility 57 | 2 3 1 . 3 3 . 11 4 5 3 5 12 5 Device 34 | 1 1 1 . 2 . . 8 2 3 1 2 10 3 Storage 5 | 1 2 . . 1 . . . . . . 1 . . Processor 10 | . . . . . 3 . . 1 1 1 1 1 2 Hackware 1 | . . . . . . . . . . . 1 . . Protection 7 | . . . . . . . 3 1 1 1 . 1 . Artifact . | . . . . . . . . . . . . . . Weapon 53 | 2 . 1 . 5 11 3 9 2 3 2 2 9 4 Energy Gun 28 | 1 . 1 . 2 5 1 5 1 1 2 2 6 1 Energy Cannon 7 | . . . . . . . . . 1 . . 3 3 Ballistic Gun 8 | 1 . . . 2 2 . 3 . . . . . . Ballistic Cannon 1 | . . . . 1 . . . . . . . . . Launcher 3 | . . . . . 1 2 . . . . . . . Special Weapon 3 | . . . . . 3 . . . . . . . . Impact Weapon 3 | . . . . . . . 1 1 1 . . . . Slashing Weapon . | . . . . . . . . . . . . . . Piercing Weapon . | . . . . . . . . . . . . . . Special Melee Weapon . | . . . . . . . . . . . . . . Unidentified Prototypes 8 | . . . . . 1 . 1 2 1 1 1 1 . Parts Lost 32 | . . 1 . 5 1 . 1 . 2 . . 11 11 Power 5 | . . . . 1 . . . . . . . 2 2 Propulsion 15 | . . 1 . 2 1 . . . 1 . . 6 4 Utility 8 | . . . . 1 . . . . . . . 2 5 Weapon 4 | . . . . 1 . . 1 . 1 . . 1 . Highest Loss Streak 10 | . . 1 . 5 1 . 1 . 2 . . 9 10 To Critical Strikes . | . . . . . . . . . . . . . . Average Slot Usage (%) 92 | . 99 100 71 96 98 100 99 100 99 99 97 90 16 Engine 5 | . 14 14 14 10 . . 7 3 3 5 5 3 . Core 3 | . . . . 3 9 9 1 3 2 5 5 3 . Treads 1 | . . 1 . . 9 9 4 . . . . . . Leg 13 | . . . . . . . 15 30 26 23 21 20 . Wheel 8 | . 28 26 28 27 17 18 7 . . . . . . Device 8 | . 13 14 14 11 1 . 4 6 13 11 10 8 6 Storage 7 | . 14 14 14 14 9 9 9 7 6 5 5 3 . Processor 16 | . . . . . 25 27 19 23 20 23 21 21 5 Protection 2 | . . . . . . . 2 . 6 4 4 3 . Energy Gun 10 | . 14 14 . 13 6 4 14 8 8 10 15 14 . Energy Cannon 1 | . . . . . . . . . . 5 5 2 . Ballistic Gun 7 | . 14 14 . 13 15 13 12 7 5 . . . . Naked Turns 2 | . . . . . . . . . . . . 1 1 Heaviest Build 82 | 13 30 30 26 51 53 55 59 60 73 77 80 82 35 Greatest Support 100 | 26 20 20 26 32 26 26 60 77 77 80 80 100 44 Greatest Overweight (x) 3 | . 1 1 1 3 2 2 3 . 1 . . 1 . Average Overweight (x) . | . . 1 . . 1 1 . . . . . . . Largest Inventory Capacity 20 | 8 15 15 15 20 20 20 20 20 20 20 20 20 5 Average Capacity 17 | 6 11 15 15 18 20 20 20 20 20 20 20 18 5 Most Carried 20 | 8 13 14 15 17 20 20 20 20 20 20 20 20 5 Average Carried 16 | 3 9 12 14 15 18 20 19 19 19 19 19 17 3 Final Capacity 20 | 8 15 15 15 20 20 20 20 20 20 20 20 5 5 Final Carried 20 | 8 13 15 15 16 20 20 20 20 19 20 20 5 1 Class Distribution -------------------- 32% | Mutant 26% | Scavenger-Skirmisher 14% | Skirmisher 10% | Assassin 6% | Scavenger-Mutant 3% | Scout 3% | Scavenger-Assassin Dominant Class ---------------- Mutant | -10/Materials Mutant | -10/Mines Mutant | -10/Exiles Skirmisher | -9/Mines Scavenger-Skirmisher | -8/Materials Scavenger-Skirmisher | -8/Garrison Scavenger-Skirmisher | -8/Materials Assassin | -7/Factory Assassin | -6/Factory Mutant | -5/Factory Mutant | -4/Factory Mutant | -3/Research Scout | -2/Research Resources | -11 -10 -10 -10 -9 -8 -8 -8 -7 -6 -5 -4 -3 -2 ----------- Run | Scr Mat Min Exi Min Mat Gar Mat Fac Fac Fac Fac Res Res Matter Collected 2843 | 250 48 106 232 119 284 9 602 129 166 157 218 443 80 Remotely . | . . . . . . . . . . . . . . Salvage Created 2872 | 64 68 106 . 99 293 21 1060 253 241 . 143 524 . Parts 166 | 6 10 7 . 12 19 7 60 10 8 . 3 24 . Haulers Intercepted 7 | . . . . . . . 3 1 1 . 1 1 . Recyclers Shooed 2 | . . . . . . . . . 2 . . . . Parts Field Recycled . | . . . . . . . . . . . . . . Retrieved Matter . | . . . . . . . . . . . . . . Parts Self-Destructed . | . . . . . . . . . . . . . . Prevented . | . . . . . . . . . . . . . . Kills | -11 -10 -10 -10 -9 -8 -8 -8 -7 -6 -5 -4 -3 -2 ------- Run | Scr Mat Min Exi Min Mat Gar Mat Fac Fac Fac Fac Res Res Combat Hostiles Destroyed 44 | . 3 2 . 3 4 8 15 3 2 . . 4 . Guns 36 | . 3 2 . 3 4 . 15 3 2 . . 4 . AOE 8 | . . . . . . 8 . . . . . . . Classes Destroyed 13 | 1 2 1 . 2 1 . 4 1 . . . 1 . Worker 4 | . . . . 1 1 . 1 . 1 . . . . Builder 6 | . . . . 1 2 . 3 . . . . . . Tunneler 4 | 3 . . . 1 . . . . . . . . . Hauler 7 | . . . . . . . 3 1 1 . 1 1 . Recycler 4 | . . . . . . . 2 1 . . . 1 . Watcher 3 | . 1 . . . . . . . . . 1 1 . Swarmer 21 | . 3 . . 3 . 8 5 2 . . . . . Grunt 13 | . . 2 . . 2 . 5 . 2 . . 2 . Brawler 1 | . . . . . . . 1 . . . . . . Duelist 1 | . . . . . . . . 1 . . . . . Sentry 5 | . . . . . 2 . 3 . . . . . . Hunter 1 | . . . . . . . 1 . . . . . . Programmer 2 | . . . . . . . . . . . . 2 . Best Kill Streak 8 | 2 2 2 . 2 3 8 6 3 3 . 1 3 . Combat Bots Only 8 | . 2 2 . 2 2 8 3 3 1 . . 2 . Max Kills in Single Turn 4 | 2 1 1 . 1 1 4 4 1 1 . 1 1 . Gunslinging . | . . . . . . . . . . . . . . Exploded 4 | . . . . . . 4 . . . . . . . Melee . | . . . . . . . . . . . . . . Uniques/NPCs Destroyed . | . . . . . . . . . . . . . . Combat | -11 -10 -10 -10 -9 -8 -8 -8 -7 -6 -5 -4 -3 -2 -------- Run | Scr Mat Min Exi Min Mat Gar Mat Fac Fac Fac Fac Res Res Damage Taken 7624 | . 93 136 . 636 159 36 789 378 169 . . 2740 2488 Core 3236 | . 8 47 . 139 32 . 131 104 18 . . 1290 1467 Absorbed by Shields . | . . . . . . . . . . . . . . Redirected to Shielding 109 | . . . . . . . 19 9 . . . 81 . Core Remaining (%) 71 | 100 . . . 22 . . 70 85 97 100 100 . . Volleys Fired 211 | 3 17 7 . 15 23 2 55 7 14 23 5 31 9 Largest 4 | 2 2 2 . 2 3 2 3 3 3 3 4 4 1 Hottest 261 | 70 70 60 . 104 121 63 138 144 144 206 261 255 120 Shots Fired 503 | 6 34 14 . 30 54 4 163 21 38 31 14 85 9 Gun 436 | 6 34 14 . 28 47 . 163 21 36 8 9 70 . Cannon 56 | . . . . 2 . . . . 2 23 5 15 9 Launcher 4 | . . . . . . 4 . . . . . . . Special 7 | . . . . . 7 . . . . . . . . Kinetic 163 | 3 17 7 . 15 26 . 76 7 12 . . . . Thermal 291 | 3 17 . . 13 17 . 62 14 26 31 14 85 9 Explosive 4 | . . . . . . 4 . . . . . . . Electromagnetic 45 | . . 7 . 2 11 . 25 . . . . . . Robot Hit Streak 18 | 4 3 9 . 4 5 3 10 7 11 8 6 18 . Robot Miss Streak 6 | . 6 2 . 2 3 1 6 1 2 3 . 2 . Penetration Max 1 | . . . . . . . 1 . 1 . . . . Secondary Targets 6 | . . 1 . . . . 3 1 . . . 1 . Max Gunslinging Chain 1 | . . 1 . . . . 1 1 . . . 1 . Shots Hit Robots 293 | 4 14 11 . 20 26 2 104 15 29 7 6 55 . Core Hits 125 | 3 5 5 . 7 15 8 39 5 9 2 2 25 . Critical Kills 3 | . . . . . . . 1 . . . 2 . . Critical Parts Destroyed . | . . . . . . . . . . . . . . Critical Strikes 13 | 1 . . . 1 . . 3 1 2 . 2 3 . Burn 10 | 1 . . . 1 . . 2 1 2 . . 3 . Meltdown 2 | . . . . . . . . . . . 2 . . Destroy 1 | . . . . . . . 1 . . . . . . Melee Attacks 17 | . . . . . . . 1 6 10 . . . . Impact 17 | . . . . . . . 1 6 10 . . . . Slashing . | . . . . . . . . . . . . . . Piercing . | . . . . . . . . . . . . . . Sneak Attacks 1 | . . . . . . . . 1 . . . . . Combat Hostiles . | . . . . . . . . . . . . . . Follow-up Attacks . | . . . . . . . . . . . . . . Damage Inflicted 6177 | 61 180 150 . 266 373 563 1998 434 550 161 157 1268 16 Guns 5126 | 61 180 150 . 249 373 . 1998 279 550 95 57 1134 . Cannons 243 | . . . . 17 . . . . . 66 95 65 . Explosions 563 | . . . . . . 563 . . . . . . . Melee 155 | . . . . . . . . 155 . . . . . Ramming 90 | . . . . . . . . . . . 5 69 16 Kinetic 1502 | 36 90 66 . 144 114 . 777 80 195 . . . . Thermal 3277 | 25 90 . . 111 113 . 872 199 355 161 152 1199 . Explosive 563 | . . . . . . 563 . . . . . . . Electromagnetic 590 | . . 84 . 11 146 . 349 . . . . . . Impact 155 | . . . . . . . . 155 . . . . . Slashing . | . . . . . . . . . . . . . . Piercing . | . . . . . . . . . . . . . . Highest Corruption 6 | . 2 2 2 2 . . . . 4 . . 6 2 Average Corruption 2 | . 2 2 2 2 . . . . 3 . . 3 2 Corruption Purged . | . . . . . . . . . . . . . . Corruption Blocked . | . . . . . . . . . . . . . . Effects 13 | . 1 . 1 5 . . . . 3 . . 2 1 Message Errors 1 | . . . . . . . . . . . . 1 . Matter Fused 6 | . . . 1 2 . . . . 2 . . 1 . Heat Flow Errors 2 | . 1 . . 1 . . . . . . . . . Data Loss (minor) 1 | . . . . 1 . . . . . . . . . Data Loss (major) 1 | . . . . 1 . . . . . . . . . Alerts 2 | . . . . . . . . . 1 . . . 1 Overload Shots . | . . . . . . . . . . . . . . Overflow Damage 194 | . . . . . . 56 . 135 . . . 3 . Projectiles . | . . . . . . . . . . . . . . Explosions 56 | . . . . . . 56 . . . . . . . Melee 138 | . . . . . . . . 135 . . . 3 . Knockbacks 2 | . . . . . . . . . . . . 2 . Impact 2 | . . . . . . . . . . . . 2 . Kinetic . | . . . . . . . . . . . . . . Secondary . | . . . . . . . . . . . . . . Self-Inflicted Damage 39 | . . . . . . . 32 . . . . . 7 Shots 1 | . . . . . . . 1 . . . . . . Rammed 6 | . . . . . . . . . . . . . 6 Targets Rammed 12 | . . . . . . . . . . . 1 5 6 Kicked 6 | . . . . . . . . . . . 1 5 . Crushed . | . . . . . . . . . . . . . . Highest Temperature 348 | 18 112 5 . 102 129 . 340 297 66 252 348 317 293 Average Temperature 77 | 9 23 5 . 41 35 . 113 122 22 66 123 83 106 Received Heat Transfer 984 | . . 78 . . 81 . 297 . 54 . . 258 216 Effects 4 | . . . . . . . 4 . . . . . . Interference 2 | . . . . . . . 2 . . . . . . Matter Decay 1 | . . . . . . . 1 . . . . . . Short Circuit 1 | . . . . . . . 1 . . . . . . Siege Activations . | . . . . . . . . . . . . . . Robots Corrupted . | . . . . . . . . . . . . . . Combat Hostiles . | . . . . . . . . . . . . . . Parts Fried 2 | . . . . . . . 2 . . . . . . Impact Corruptions 2 | . . . . . . . . 1 . . . 1 . Robots Melted 2 | . . . . . . . . . . . 2 . . Combat Hostiles . | . . . . . . . . . . . . . . Parts Melted 17 | 1 . . . 1 . . 1 2 1 . 3 8 . Heat Transferred 7121 | 148 259 . . 333 296 . 1850 481 888 285 261 2320 . Parts Sabotaged . | . . . . . . . . . . . . . . Parts Stolen . | . . . . . . . . . . . . . . Parts Stripped . | . . . . . . . . . . . . . . Power Chain Reactions 1 | . . . . . . . 1 . . . . . . Missiles Intercepted . | . . . . . . . . . . . . . . Alert | -11 -10 -10 -10 -9 -8 -8 -8 -7 -6 -5 -4 -3 -2 ------- Run | Scr Mat Min Exi Min Mat Gar Mat Fac Fac Fac Fac Res Res Peak Influence 444 | 15 215 123 . 100 188 191 240 139 145 84 98 251 444 Initial 92 | . 9 83 . . . 17 92 43 8 7 25 51 78 Average 86 | 4 80 96 . 60 64 94 116 65 41 47 66 123 196 Maximum Alert Level 2 | . 1 . . . . . 1 . . . . 1 2 Low Security (%) 93 | 100 95 100 . 100 100 100 92 100 100 100 100 76 62 Level 1 5 | . 4 . . . . . 7 . . . . 23 28 Level 2 . | . . . . . . . . . . . . . 9 Level 3 . | . . . . . . . . . . . . . . Level 4 . | . . . . . . . . . . . . . . Level 5 . | . . . . . . . . . . . . . . High Security . | . . . . . . . . . . . . . . Max Security . | . . . . . . . . . . . . . . Squads Dispatched 17 | . 3 . . . 2 . 2 . 2 . . 5 3 Investigation 7 | . 2 . . . 1 . . . 1 . . 1 2 Extermination . | . . . . . . . . . . . . . . Reinforcement 8 | . 1 . . . . . 2 . 1 . . 3 1 Assault 1 | . . . . . . . . . . . . 1 . Garrison 1 | . . . . . 1 . . . . . . . . Intercept . | . . . . . . . . . . . . . . Searches Triggered . | . . . . . . . . . . . . . . Construction Impeded 1 | . . . . . . . . . . . . . 1 Haulers Reinforced . | . . . . . . . . . . . . . . Active Scanning Responses . | . . . . . . . . . . . . . . Cargo Convoy Interrupts . | . . . . . . . . . . . . . . Stealth | -11 -10 -10 -10 -9 -8 -8 -8 -7 -6 -5 -4 -3 -2 --------- Run | Scr Mat Min Exi Min Mat Gar Mat Fac Fac Fac Fac Res Res Distress Signals 12 | . 2 . . . 2 . 3 . . . . 3 2 Communications Jammed 17 | . . . . . . . . . 1 4 1 8 3 Distress Signals 13 | . . . . . . . . . . 4 . 6 3 Times Spotted 134 | . 10 2 . 6 9 8 26 3 5 6 2 29 28 Peak Tracking Total 16 | . 4 2 . 3 3 6 5 3 2 2 2 13 16 Tactical Retreats 16 | . . . . 1 1 . 2 . 2 . . 4 6 Traps | -11 -10 -10 -10 -9 -8 -8 -8 -7 -6 -5 -4 -3 -2 ------- Run | Scr Mat Min Exi Min Mat Gar Mat Fac Fac Fac Fac Res Res Traps Triggered 7 | . 1 . . . . . 2 1 2 . . . 1 Indirectly . | . . . . . . . . . . . . . . Trap Hack Attempts . | . . . . . . . . . . . . . . Triggered . | . . . . . . . . . . . . . . Disarmed . | . . . . . . . . . . . . . . Reprogrammed . | . . . . . . . . . . . . . . Reused . | . . . . . . . . . . . . . . Traps Extracted . | . . . . . . . . . . . . . . Installed . | . . . . . . . . . . . . . . Triggered . | . . . . . . . . . . . . . . Machines | -11 -10 -10 -10 -9 -8 -8 -8 -7 -6 -5 -4 -3 -2 ---------- Run | Scr Mat Min Exi Min Mat Gar Mat Fac Fac Fac Fac Res Res Machines Disabled 4 | . . . . . . . 2 . 1 1 . . . Max in Single Turn 2 | . . . . . . . 2 . 1 1 . . . Garrison Access 5 | . . . . . . . . 1 . 2 . 2 . Machines Sabotaged . | . . . . . . . . . . . . . . Garrisons Compromised . | . . . . . . . . . . . . . . Overloaded Fab Kills 1 | . . . . . . . . . . . . . 1 Hacking | -11 -10 -10 -10 -9 -8 -8 -8 -7 -6 -5 -4 -3 -2 --------- Run | Scr Mat Min Exi Min Mat Gar Mat Fac Fac Fac Fac Res Res Machines Accessed 45 | . 5 . 1 1 6 . 8 6 5 4 3 3 3 Terminals 32 | . 4 . . 1 5 . 8 4 4 1 2 1 2 Fabricators 6 | . . . . . . . . 1 1 1 1 1 1 Repair Stations . | . . . . . . . . . . . . . . Recycling Units 1 | . 1 . . . . . . . . . . . . Scanalyzers . | . . . . . . . . . . . . . . Garrison Access 5 | . . . . . 1 . . 1 . 2 . 1 . Total Hacks 100 | . 12 . 1 3 15 . 20 9 11 7 7 7 8 Successful 53 | . 7 . 1 1 7 . 13 6 6 2 4 4 2 Failed 45 | . 5 . . 2 7 . 6 3 5 5 3 3 6 Catastrophic 9 | . 1 . . . 1 . 1 2 2 . . 1 1 Database Lockouts 2 | . . . . . 1 . 1 . . . . . . Manual 62 | . 10 . 1 3 10 . 11 6 6 2 4 4 5 Terminals 81 | . 11 . . 3 14 . 20 7 9 2 5 4 6 Fabricators 12 | . . . . . . . . 1 2 3 2 2 2 Repair Stations . | . . . . . . . . . . . . . . Recycling Units 1 | . 1 . . . . . . . . . . . . Scanalyzers . | . . . . . . . . . . . . . . Garrison Access 5 | . . . . . 1 . . 1 . 2 . 1 . Terminal Hacks 26 | . 3 . 1 1 3 . 10 2 2 . 2 1 1 Robot Analysis 4 | . 1 . . 1 1 . 1 . . . . . . Prototype ID Bank 5 | . . . . . 1 . 3 . 1 . . . . Level Access Points 1 | . . . . . . . . . . . 1 . . Branch Access Points 1 | . . . . . . . . . 1 . . . . Terminal Index 2 | . . . . . . . . 1 . . . . 1 Unreport Threat 3 | . . . . . . . 3 . . . . . . Locate Traps 5 | . 1 . . . 1 . . 1 . . 1 1 . Recall Investigation 1 | . . . . . . . 1 . . . . . . Recall Reinforcements 1 | . . . . . . . 1 . . . . . . Zone Layout 2 | . 1 . . . . . 1 . . . . . . EX-Prototype ID Bank 1 | . . . 1 . . . . . . . . . . Fabricator Hacks 1 | . . . . . . . . . 1 . . . . Build 1 | . . . . . . . . . 1 . . . . Repair Station Hacks . | . . . . . . . . . . . . . . Recycling Unit Hacks . | . . . . . . . . . . . . . . Scanalyzer . | . . . . . . . . . . . . . . Garrison Access Hacks 5 | . . . . . 1 . . 1 . 2 . 1 . Unlock Access 1 | . . . . . 1 . . . . . . . . Seal Access 4 | . . . . . . . . 1 . 2 . 1 . Unauthorized Hacks 21 | . 4 . . . 3 . 3 3 3 . 2 2 1 Terminals 15 | . 3 . . . 3 . 3 2 2 . 1 1 . Track 1 | . 1 . . . . . . . . . . . . Assimilate 2 | . . . . . . . 1 . . . . 1 . Botnet 11 | . 2 . . . 2 . 2 2 2 . 1 . . Operators 1 | . . . . . 1 . . . . . . . . Fabricators 5 | . . . . . . . . 1 1 . 1 1 1 Fabnet 3 | . . . . . . . . 1 1 . 1 . . Overload 2 | . . . . . . . . . . . . 1 1 Repair Stations . | . . . . . . . . . . . . . . Recycling Units 1 | . 1 . . . . . . . . . . . . Tunnel 1 | . 1 . . . . . . . . . . . . Scanalyzers . | . . . . . . . . . . . . . . Garrison Access . | . . . . . . . . . . . . . . Data Cores Recovered . | . . . . . . . . . . . . . . Used . | . . . . . . . . . . . . . . Hacking Detections 37 | . 4 . . 1 6 . 7 5 5 2 2 2 3 Full Trace Events 5 | . 2 . . . 1 . . . 1 . . . 1 Feedback Events . | . . . . . . . . . . . . . . Feedback Blocked . | . . . . . . . . . . . . . . Robot Schematics Acquired . | . . . . . . . . . . . . . . Robots Built . | . . . . . . . . . . . . . . Authchips . | . . . . . . . . . . . . . . Time 116 | . . . . . . . . . 116 . . . . Total Robot Build Rating . | . . . . . . . . . . . . . . Part Schematics Acquired . | . . . . . . . . . . . . . . Parts Built . | . . . . . . . . . . . . . . Authchips . | . . . . . . . . . . . . . . Time . | . . . . . . . . . . . . . . Total Part Build Rating . | . . . . . . . . . . . . . . Parts Repaired . | . . . . . . . . . . . . . . Time . | . . . . . . . . . . . . . . Parts Recycled . | . . . . . . . . . . . . . . Recycled Matter . | . . . . . . . . . . . . . . Retrieved Matter . | . . . . . . . . . . . . . . Retrieved Components . | . . . . . . . . . . . . . . Parts Scanalyzed . | . . . . . . . . . . . . . . Part Schematics Acquired . | . . . . . . . . . . . . . . Parts Damaged . | . . . . . . . . . . . . . . Bothacking | -11 -10 -10 -10 -9 -8 -8 -8 -7 -6 -5 -4 -3 -2 ------------ Run | Scr Mat Min Exi Min Mat Gar Mat Fac Fac Fac Fac Res Res Used RIF Installer 1 | . . . . . . 1 . . . . . . . Robots Hacked 1 | . . . . . . . . . . 1 . . . Non-combat . | . . . . . . . . . . . . . . Combat 1 | . . . . . . . . . . 1 . . . Robot Hacks Applied . | . . . . . . . . . . . . . . Relay Couplers Released 1 | . . . . . . . . . . . . 1 . Machine Destruction 1 | . . . . . . . . . . . . 1 . Fabnet Peak Effective % 3 | . . . . . . . . . 3 1 . 3 1 Autooverrided 1 | . . . . . . . . . . 1 . . . Robots Rewired . | . . . . . . . . . . . . . . Allies Hacked . | . . . . . . . . . . . . . . Hacks Repelled . | . . . . . . . . . . . . . . Allies | -11 -10 -10 -10 -9 -8 -8 -8 -7 -6 -5 -4 -3 -2 -------- Run | Scr Mat Min Exi Min Mat Gar Mat Fac Fac Fac Fac Res Res Total Allies 2 | . . . . . . . . . . 1 . 1 . Largest Group 1 | . . . . . . . . . . 1 . 1 . Highest-Rated Group 49 | . . . . . . . . . . 49 . 10 . Highest-Rated Ally 49 | . . . . . . . . . . 49 . 10 . Total Orders 2 | . . . . . . . . . . . . 2 . STAY 1 | . . . . . . . . . . . . 1 . FOLLOW 1 | . . . . . . . . . . . . 1 . Ally Attacks . | . . . . . . . . . . . . . . Total Damage . | . . . . . . . . . . . . . . Kills . | . . . . . . . . . . . . . . Allies Corrupted . | . . . . . . . . . . . . . . Allies Melted . | . . . . . . . . . . . . . . Intel | -11 -10 -10 -10 -9 -8 -8 -8 -7 -6 -5 -4 -3 -2 ------- Run | Scr Mat Min Exi Min Mat Gar Mat Fac Fac Fac Fac Res Res Robot Analysis Total 4 | . 1 . . 1 1 . 1 . . . . . . Derelict Logs Recovered 2 | . . . . 2 . . . . . . . . . Drone Launches . | . . . . . . . . . . . . . . Drone Recoveries . | . . . . . . . . . . . . . . Exploration | -11 -10 -10 -10 -9 -8 -8 -8 -7 -6 -5 -4 -3 -2 ------------- Run | Scr Mat Min Exi Min Mat Gar Mat Fac Fac Fac Fac Res Res Turns Passed 5435 | 63 290 88 229 426 504 111 1004 544 536 501 282 529 328 Spaces Moved 4110 | 49 264 53 244 331 366 91 572 373 342 346 200 365 514 Core 619 | 22 . . . . . . . . . . . 99 498 Treads . | . . . . . . . . . . . . . . Legs 1849 | . . . . . . . 322 373 342 346 200 266 . Wheels 1626 | 27 264 53 244 331 366 91 250 . . . . . . Hover 16 | . . . . . . . . . . . . . 16 Flight . | . . . . . . . . . . . . . . Fastest Speed 50 | 50 80 95 90 90 105 105 105 130 127 125 125 50 50 Average Speed 105 | 67 85 95 93 104 105 112 125 130 130 125 125 104 50 Slowest Speed 200 | 90 95 95 95 145 120 120 200 130 200 127 125 195 68 Overloaded Moves . | . . . . . . . . . . . . . . Propulsion Burnouts . | . . . . . . . . . . . . . . Robots Hopped . | . . . . . . . . . . . . . . Cave-ins Triggered . | . . . . . . . . . . . . . . Exploration Rate (%) 28 | 3 56 12 65 54 26 33 49 17 16 20 8 20 16 Regions Visited 13 Branch Regions 3 Pre-discovered Areas 2 | . 1 . . 1 . . . . . . . . . Known Exits Taken 4 | . . . . 1 1 . . . . . 1 1 . Unknown Exits Taken 8 | 1 1 1 1 . . . 1 1 1 1 . . . Scrap Searched 1 | . . . . 1 . . . . . . . . . Spaces Dug 61 | . . . . . 7 . 1 5 9 19 2 9 9 Terrain Destroyed 74 | . . . . 1 7 4 7 5 10 20 2 9 9 Melee 13 | . . . . . . . 1 5 7 . . . . Projectile 54 | . . . . 1 7 . 3 . 3 20 2 9 9 AOE 7 | . . . . . . 4 3 . . . . . . Terrain Rammed . | . . . . . . . . . . . . . . Walls Destroyed . | . . . . . . . . . . . . . . Machines Disabled . | . . . . . . . . . . . . . . Actions | -11 -10 -10 -10 -9 -8 -8 -8 -7 -6 -5 -4 -3 -2 --------- Run | Scr Mat Min Exi Min Mat Gar Mat Fac Fac Fac Fac Res Res Total 4755 | 70 296 76 246 380 431 94 741 409 387 386 222 445 572 Wait 79 | . 1 10 . 12 . . 26 . 3 . 1 10 16 Move 4096 | 48 263 52 243 330 365 89 571 372 341 345 199 364 514 Hop . | . . . . . . . . . . . . . . Pick Up 90 | 10 7 1 1 7 12 . 23 6 5 6 3 6 3 Fast Attach 35 | 5 . . . 3 3 . 6 2 1 1 4 2 8 Attach 56 | 3 2 1 1 6 5 . 13 2 3 4 2 5 9 Detach 17 | 1 1 2 . . 2 . 3 2 . 2 . . 4 Swap 74 | . 2 3 . 4 12 3 17 5 6 2 2 18 . Drop 68 | . 3 . 1 3 9 . 26 7 4 3 5 4 3 Fire 211 | 3 17 7 . 15 23 2 55 7 14 23 5 31 9 Melee 17 | . . . . . . . 1 6 10 . . . . Ram 6 | . . . . . . . . . . . . . 6 Kick 6 | . . . . . . . . . . . 1 5 . Crush . | . . . . . . . . . . . . . . Escape Stasis . | . . . . . . . . . . . . . . Rewire . | . . . . . . . . . . . . . . Trap . | . . . . . . . . . . . . . . Miscellaneous . | . . . . . . . . . . . . . . Route ------- -11/Scrapyard -10/Materials (discovered 2 exits: [*Mat] / [*Min]) -10/Mines -10/Exiles -9/Mines (discovered 2 exits: *Mat x2) -8/Materials -8/Garrison -8/Materials -7/Factory -6/Factory (discovered 5 exits: *Fac / Low x2 / Ext x2) -5/Factory (discovered 2 exits: *Fac / [*Upp]) -4/Factory (discovered 4 exits: *Res x4) -3/Research -2/Research History --------- Turn | Location | Event 12 | -11/Scrapyard | Discovered new exit (range 14) 64 | -11/Scrapyard | Entered Materials 238 | -10/Materials | Discovered new exit (range 16) 306 | -10/Materials | Build established: Mutant 324 | -10/Materials | Discovered new exit (range 8) 354 | -10/Materials | Entered Mines 362 | -10/Mines | Met a Derelict bent on vengeance 438 | -10/Mines | Deemed a non-threat by the Exiles lab entrance 438 | -10/Mines | Discovered new exit (range 5) 442 | -10/Mines | Entered Exiles 466 | -10/Exiles | Met 8R-AWN 480 | -10/Exiles | Met EX-HEX 544 | -10/Exiles | Met EX-BIN 555 | -10/Exiles | Aligned with FarCom system 556 | -10/Exiles | Given EX-Vault access code 577 | -10/Exiles | Opened EX-Vault 585 | -10/Exiles | Found Modified TNC 605 | -10/Exiles | Warned to stay clear of 0b10 Research branches 617 | -10/Exiles | Exiles lab attacked by MAIN.C 664 | -10/Exiles | Discovered new exit (range 10) 671 | -10/Exiles | Left Exiles lab with Modified TNC 671 | -10/Exiles | Entered Mines 684 | -9/Mines | Received a Rocket Launcher from a helpful Derelict 740 | -9/Mines | A weapon hastily lodged in a ceiling crevice suddenly fell to the ground 913 | -9/Mines | Discovered new exit (range 7) 945 | -9/Mines | Identified exit to Materials 953 | -9/Mines | Assembled infested the area 958 | -9/Mines | Assisted by a Guerilla fighting off Assembled 991 | -9/Mines | Core integrity fell below 50% 1025 | -9/Mines | Lost 5 parts (1p2n1u1w) 1097 | -9/Mines | Entered Materials 1097 | -8/Materials | Evolved 4 slots: Propulsion x1, Utility x2, Weapon x1 1263 | -8/Materials | Garrison activated, responded to threat 1359 | -8/Materials | Build established: Scavenger-Skirmisher 1466 | -8/Materials | Central database locked down 1596 | -8/Materials | Identified exit to Garrison 1601 | -8/Materials | Entered Garrison 1608 | -8/Garrison | Installed Relay Interface Framework 1660 | -8/Garrison | Triggered checkpoint 1685 | -8/Garrison | Destroyed 8 combat bots 1700 | -8/Garrison | Discovered new exit (range 10) 1712 | -8/Garrison | Entered Materials 2005 | -8/Materials | Discovered new exit (range 5) 2188 | -8/Materials | Central database locked down 2716 | -8/Materials | Entered Factory 2716 | -7/Factory | Evolved 2 slots: Propulsion x1, Utility x1 3176 | -7/Factory | Build established: Assassin 3198 | -7/Factory | Discovered new exit (range 15) 3260 | -7/Factory | Entered another Factory area 3260 | -6/Factory | Evolved 2 slots: Utility x2 3402 | -6/Factory | Identified exit to Lower Caves 3402 | -6/Factory | Identified exit to Extension 3555 | -6/Factory | Found Prototype Processor 3791 | -6/Factory | Discovered new exit (range 4) 3796 | -6/Factory | Entered another Factory area 3796 | -5/Factory | Evolved 2 slots: Power x1, Utility x1 3798 | -5/Factory | Identified Exp. Targeting Computer 4032 | -5/Factory | Discovered new exit (range 10) 4270 | -5/Factory | Discovered new exit (range 14) 4297 | -5/Factory | Entered another Factory area 4297 | -4/Factory | Evolved 2 slots: Utility x1, Weapon x1 4382 | -4/Factory | Identified exit to Research 4414 | -4/Factory | Found Prototype Hackware 4414 | -4/Factory | Identified Exp. Hacking Suite 4579 | -4/Factory | Entered Research 4579 | -3/Research | Evolved 2 slots: Propulsion x1, Utility x1 5057 | -3/Research | Released all parts (13) 5071 | -3/Research | Core integrity fell below 50% 5076 | -3/Research | Spotted B-86 Titan 5088 | -3/Research | Lost 9 parts (2p4n2u1w) 5101 | -3/Research | Discovered new exit (range 13) 5103 | -3/Research | Core integrity fell below 20% 5107 | -3/Research | Identified exit to Research 5108 | -3/Research | Entered another Research area 5108 | -2/Research | Evolved 2 slots: Propulsion x1, Utility x1 5248 | -2/Research | Spotted B-90 Cyclops 5410 | -2/Research | Core integrity fell below 50% 5432 | -2/Research | Core integrity fell below 20% 5433 | -2/Research | Spotted B-90 Cyclops 5436 | -2/Research | Destroyed by H-88 Terminator with KE Penetrator Last Messages --------------- 05405_ Transmission Jammer destroyed. 05412_ Gyrokinetic Inverter destroyed. 05422_ Critical hit (Blast). 05422_ C-30 ARC bursts open, deploying its payload. 05422_ P-80 Master unfolds itself. 05422_ Penetrated by Slug. 05424_ Centrium Leg destroyed. 05424_ Acquired 14 matter. 05426_ Adv. Targeting Computer destroyed. 05431_ ECM Suite destroyed. 05431_ Penetrated by Slug. 05433_ Gyrokinetic Inverter destroyed. 05434_ Slug penetrates Wall. 05435_ Penetrated by Slug. 05435_ Triggered Segregator Trap. 05435_ Arcs of energy rise from the floor. 05435_ Gyrokinetic Inverter blown off. 05435_ Adv. Signal Interpreter blown off. 05436_ Slug penetrates Door. 05436_ Penetrated by Slug. Map ----- +----------------------------------------------------+ | ?????????????????????????????????????????????????? | | ?????????????????????????????????????????????????? | | ?????????????????????????????????????????????????? | | ?????????????????????????????????????????????????? | | ?????????????????????????????????????????????????? | | ?????????????????????????????????????????????????? | | ?????????????????????????????????????????????????? | | ?????????????????????????????????????????????????? | | ?????????????????????????????????????????????????? | | ?????????????????????????????????????????????????? | | ?????????????????????????????????????????????????? | | ???????????????????????????? ???????????????????? | | ???????????????????????????? ???????????????????? | | ???????????????????????????? ???????????????????? | | ?????? ???????????Y????????A ???????????????????? | | ???? ??????????????????? ????????????????????? | | ???# ??????????????????? ????????????????????? | | ???# "??????????????????? ????????????????????? | | ???# "%????????????????###;##??????? #??????????? | | ???# "????????????????# #######BB#??????????? | | ???# ????????????????# ??????????? | | ???# hh??????????????# ?????????? | | ???# H#?????????????w?+ ?????????? | | ???# #???????????????# !!! ??????????? | | ???# #???????????????# !!! """? ????????? | | ???# #################@ !!! """ ""??????? | | ???# ## # A """ "??????? | | ???# ## # ?????? | | ???# ## # ??????? | | ???# ## # ??????? | | #######+### #? # #???????? | | # #??? # ????????? | | ! # ######+### ????????? | | # p sgg hg ####?????????? | | # s g #????????????? | | = [ # g #????????????? | | # gYh #????????????? | | ##############+#############+### #????????????? | | ?????????????????????# # ##???????????? | | ?????????????????????# # T#???????????? | | ?????????????????????# # #???????????? | | ?????????????????????# # ##???????????? | | ?????????????????????# # #????????????? | | ?????????????????????# # #????????????? | | ?????????????????????# # #????????????? | | ?????????????????????# # #????????????? | | ?????????????????????########### #????????????? | | ??????????????????????# """" #?# " ???????????? | | ??????????????????????#""""""#?# # ?????????? | | ??????????????????????#""F ""#?# # ????????? | +----------------------------------------------------+ Best States ------------- Heat Dissipation 73 Coolant Potential 80 Energy Generation 39 Energy Capacity 550 Matter Stores 300 Matter Capacity 300 Sight Range 18 Terrain Scan Range 20 Terrain Scan Density 210 ECM Strength 1 Jamming Range 12 Utility Shielding 66 Evasion (%) 55 Targeting Accuracy 20 Recoil Reduction 2 Salvage Targeting 1 Offensive Hacking 16 Item Schematics ----------------- None Robot Schematics ------------------ None Fabricated ------------ Nothing Alien Tech Used ----------------- None Achievements -------------- None Challenges ------------ None Game ------ Seed MobileBackupKinecellerator Manual? 0 Play Time 01:35:03 Cumulative 710.5 hours Start 2022.06.29 @ 22:39:11 End 2022.06.30 @ 00:10:37 Sessions 3 Manual Loads 0 Difficulty Rogue Special Mode None Game No. 373 Rogue 246 Adventurer 125 Explorer 2 Win Type - Total 83 Types 72/4/4/1/1/0/0/0/1 Lore% 81 Gallery% 88 Achievement% 76 Wizard Run 0 Options --------- ASCII 0 Keyboard 1 Movement Numpad Keybinds 0 Fullscreen 1 Font 36/TerminusFine Map View 76x50 Tactical HUD 1 Map Filters NONE Filters NONE Steam 1 RUN: ebf8ddda-b8d8-4ede-aa5d-9f7cc94e0a6a